{"text_format":"3","workbook":"xlsx","n_sheets":2,"sheets":["list","data"],"not_rendered":{"defined_names":8},"read":"whole","date_system":"1900"}

{"sheet":"list","index":0,"n_rows":36,"n_cols":17,"rows_kept":36}
["№","Название ОУ","Фамилия","Имя","Имя","Отчество","Отчество","Класс","Класс участия","Первичный балл","Добавлено по итогам апелляций","Итоговый балл","Макс. Балл","Статус","Призер регионального / республиканского этапа прошлого года","Учитель","Место работы учителя"]
[1,"МБОУ \"СОШ №1\"","Ялаев",{"$f":"LEFT(E2)","v":"В"},"Вильдан",{"$f":"LEFT(G2)","v":"Р"},"Рустемович",7,7,38,null,{"$f":"J2+K2","v":38},100,"участник",null,"Габдуллина Наиля Минниахметовна","МБОУ\"СОШ №1\""]
[2,"МБОУ \"СОШ №1\"","Петраев",{"$f":"LEFT(E3)","v":"М"},"Максим",{"$f":"LEFT(G3)","v":"Л"},"Леонидович",7,7,17,null,{"$f":"J3+K3","v":17},100,"участник",null,"Габдуллина Наиля Минниахметовна","МБОУ\"СОШ №1\""]
[3,"МБОУ \"СОШ №1\"","Набиева","Р","Радмила","Р","Радиковна",7,7,9,null,{"$f":"J4+K4","v":9},100,"участник",null,"Габдуллина Наиля Минниахметовна","МБОУ\"СОШ №1\""]
[4,"МБОУ \"СОШ №1\"","Московская","Д","Дарина","Д","Динатовна",7,7,25,null,25,100,"участник",null,"Габдуллина Наиля Минниахметовна","МБОУ\"СОШ №1\""]
[5,"МБОУ \"СОШ №2\" г. Мензелинска РТ","Винокурова","Е","Евгения","Н","Николаевна",7,7,17,null,17,100,"участник",null,"Салимуллина Ольга Владимировна","МБОУ СОШ №2"]
[6,"МБОУ \"СОШ №2\" г. Мензелинска РТ","Баскакова","Е","Ева","С","Станиславовна",7,7,15,null,15,100,"участник",null,"Салимуллина Ольга Владимировна","МБОУ СОШ №2"]
[7,"МБОУ \"СОШ №2\" г. Мензелинска РТ","Федотова","С","Самира","В","Витальевна",7,7,14,null,14,100,"участник",null,"Салимуллина Ольга Владимировна","МБОУ СОШ №2"]
[8,"ГАПОУ \"Мензелинский педагогический колледж имени Мусы Джалиля\"","Арысланова","С","Самира","Р","Рамилевна",7,7,9,null,9,100,"участник",null,"Гимадиева Алсу Фирдаусовна","ГАПОУ МПК"]
[9,"МБОУ \"Подгорнобайларская ООШ\"","Абдуллаев","М","Марсель","А","Артурович",7,7,16,null,16,100,"участник",null,"Гимадиева Алсу Фирдаусовна","МБОУ\"Подгорнобайларская ООШ\" Мензелинского муниципального района РТ"]
[10,"МБОУ \"Урусовская ООШ имени Р.Закирова\"","Газизянов","С","Салават","Ф","Фанисович",7,7,25,null,25,100,"участник",null,"Талипова Танзиля Хамадулловна","МБОУ \"Урусовская ООШ имени Р.Закирова\""]
[11,"МБОУ \"СОШ №1\"","Донскова","Д","Диана","С","Сергеевна",8,8,54.5,null,54.5,100,"призер",null,"Габдуллина Наиля Минниахметовна","МБОУ\"СОШ №1\""]
[12,"МБОУ \"СОШ №1\"","Коротина","К","Калерия","О","Олеговна",8,8,75,null,75,100,"победитель",null,"Габдуллина Наиля Минниахметовна","МБОУ\"СОШ №1\""]
[13,"МБОУ \"СОШ №1\"","Кукаркина","А","Анастасия","Р","Рустямовна",8,8,23,null,23,100,"участник",null,"Габдуллина Наиля Минниахметовна","МБОУ\"СОШ №1\""]
[14,"МБОУ \"СОШ №2\" г. Мензелинска РТ","Гарипова","М","Милана","Р","Руслановна",8,8,23.5,null,23.5,100,"участник",null,"Салимуллина Ольга Владимировна","МБОУ СОШ №2"]
[15,"МБОУ \"СОШ №2\" г. Мензелинска РТ","Липина","Е","Евгения","Е","Евгеньевна",8,8,24.5,null,24.5,100,"участник",null,"Попова Елена Сергеевна","МБОУ СОШ №2"]
[16,"МБОУ \"СОШ №3\"","Моторин","А","Арсений","А","Алексеевич",8,8,11.5,null,11.5,100,"участник",null,"Ильина Светлана Владимировна","МБОУ \"СОШ №3 г. Мензелинчска РТ"]
[17,"МБОУ \"СОШ №3\"","Лисунова","С","София","К","Константиновна",8,8,57.5,null,57.5,100,"призер",null,"Ильина Светлана Владимировна","МБОУ \"СОШ №3 г. Мензелинска РТ"]
[18,"МБОУ \"Гимназия\" г.Мензелинска РТ","Батталов","С","Самат","И","Ильгизович",8,8,16,null,16,100,"участник",null,"Имамутдинов Васил Васимович","МБОУ \"Гимназия\" г.Мензелинска"]
[19,"МБОУ \"СОШ №1\"","Малышева","А","Алена","В","Владимировна",9,9,23.5,null,23.5,100,"участник",null,"Габдуллина Наиля Минниахметовна","МБОУ\"СОШ №1\""]
[20,"МБОУ \"СОШ №1\"","Мансурова","А","Алия","М","Мансуровна",9,9,75.5,null,75.5,100,"победитель",null,"Габдуллина Наиля Минниахметовна","МБОУ\"СОШ №1\""]
[21,"МБОУ \"СОШ №1\"","Чинаев","А","Арсений","С","Сергеевич",9,9,20,null,20,100,"участник",null,"Габдуллина Наиля Минниахметовна","МБОУ\"СОШ №1\""]
[22,"МБОУ \"СОШ №1\"","Юдина","М","Мария","Е","Егоровна",9,9,23,null,23,100,"участник",null,"Габдуллина Наиля Минниахметовна","МБОУ\"СОШ №1\""]
[23,"МБОУ \"СОШ №2\" г. Мензелинска РТ","Кузнецова","В","Варвара","И","Ивановна",9,9,12.5,null,12.5,100,"участник",null,"Попова Елена Сергеевна","МБОУ СОШ №2"]
[24,"МБОУ \"СОШ №3\"","Хизбуллин","А","Артур","Р","Русланович",9,9,16,null,16,100,"участник",null,"Ильина Светлана Владимировна","МБОУ \"СОШ №3 г. Мензелинчска РТ"]
[25,"МБОУ \"СОШ №3\"","Семенов","К","Кирилл","Г","Геннадьевич",9,9,14.5,null,14.5,100,"участник",null,"Ильина Светлана Владимировна","МБОУ \"СОШ №3 г. Мензелинчска РТ"]
[26,"МБОУ \"Матвеевская ООШ","Мухаметзянова","Р","Розалина","И","Ильдаровна",9,9,22,null,22,100,"участник",null,"Казанцева Надежда Сергеевна","МБОУ \"Матвеевская ООШ\""]
[27,"МБОУ \"Гимназия\" г.Мензелинска РТ","Григорьева","А","Алина","Н","Николаевна",9,9,16,null,16,100,"участник",null,"Имамутдинов Васил Васимович","МБОУ \"Гимназия\" г.Мензелинска"]
[28,"МБОУ \"Подгорнобайларская ООШ\"","Закиров","Н","Нурислам","Р","Рамилевич",9,9,7,null,7,100,"участник",null,"Гимадиева Алсу Фирдаусовна","МБОУ\"Подгорнобайларская ООШ\" Мензелинского муниципального района РТ"]
[29,"МБОУ \"Татарскомушугинская СОШ им.К.А.Смирновой\"","Саматова","Л","Лейла","С","Салаватовна",9,9,11,null,11,100,"участник",null,"Кабиров Дамир Раисович","МБОУ \"Татарскомушугинская СОШ имени К.А.Смирновой\""]
[30,"МБОУ \"Урусовская ООШ имени Р.Закирова\"","Ахметова","А","Айгуль","Р","Расулевна",9,9,6.5,null,6.5,100,"участник",null,"Талипова Танзиля Хамадулловна","МБОУ \"Урусовская ООШ имени Р.Закирова\""]
[31,"МБОУ \"Верхнетакерменская ООШ им. Г.Сабитова\"","Аминова","З","Зайнап","И","Ильдусовна",9,9,11.5,null,11.5,100,"участник",null,"Гараева Флюра Ярулловна","МБОУ \"Верхнетакерменская ООШ\""]
[32,"МБОУ \"СОШ №2\" г. Мензелинска РТ","Хныкин","К","Кирилл","Е","Евгеньевич",10,10,75.5,null,75.5,100,"победитель",null,"Салимуллина Ольга Владимировна","МБОУ СОШ №2"]
[33,"МБОУ \"Гимназия\" г.Мензелинска РТ","Фаттахова","З","Зарина","З","Зуфаровна",10,10,8.5,null,8.5,100,"участник",null,"Имамутдинов Васил Васимович","МБОУ \"Гимназия\" г.Мензелинска"]
[34,"МБОУ \"СОШ №3\"","Абубакирова","Л","Лилия","У","Ульфатовна",11,11,34,null,34,100,"участник",null,"Ильина Светлана Владимировна","МБОУ \"СОШ №3 г. Мензелинчска РТ"]
[35,"МБОУ \"СОШ №3\"","Сысоева","Д","Дарина","Д","Денисовна",11,11,16.5,null,16.5,100,"участник",null,"Ильина Светлана Владимировна","МБОУ \"СОШ №3 г. Мензелинчска РТ"]

{"sheet":"data","index":1,"n_rows":25,"n_cols":10,"rows_kept":25}
[{"$nulls":6},"1 - Техника, технология и техническое творчество","2 - Культура дома, дизайн и технологии","3 - Робототехника","4 - Информационная безопасность"]
["1 - Техника, технологии и техническое творчество","1.1  Практика по ручной деревообработке",{"$nulls":4},"1.1 Практика по ручной деревообработке","2.1 Ручная обработка швейного изделия или узла","3.1 Робототехника","4.1 Не предусмотрена"]
["2 - Культура дома, дизайн и технологии","1.2 Практика по механической деревообработке",{"$nulls":4},"1.2 Практика по механической деревообработке","2.2 Механическая обработка швейного изделия или узла + Моделирование"]
["3 - Робототехника","1.3 Практика по ручной металлообработке",{"$nulls":4},"1.3 Практика по ручной металлообработке","2.3 Обработка швейного изделия или узла на швейно-вышивальном оборудовании + Моделирование"]
["4 - Информационная безопасность","1.4 Практика по механической металлообработке",{"$nulls":4},"1.4 Практика по механической металлообработке","2.4 3D-моделирование и печать"]
[null,"1.5 Электрорадиотехника",{"$nulls":4},"1.5 Электрорадиотехника","2.5 Практика по работе на лазерно-гравировальном станке"]
[null,"1.6 3D-моделирование и печать",{"$nulls":4},"1.6 3D-моделирование и печать","2.6 Промышленный дизайн"]
[null,"1.7 Практика по работе на лазерно-гравировальном станке",{"$nulls":4},"1.7 Практика по работе на лазерно-гравировальном станке"]
[null,"1.8 Промышленный дизайн",{"$nulls":4},"1.8 Промышленный дизайн"]
[null,"2.1 Ручная обработка швейного изделия или узла"]
[null,"2.2 Механическая обработка швейного изделия или узла + Моделирование"]
[null,"2.3 Обработка швейного изделия или узла на швейно-вышивальном оборудовании + Моделирование"]
[null,"2.4 3D-моделирование и печать"]
[null,"2.5 Практика по работе на лазерно-гравировальном станке"]
[null,"2.6 Промышленный дизайн"]
[null,"3.1 Робототехника"]
[null,"4.1 Не предусмотрена"]
[]
[]
[]
[]
[]
["участник"]
["призер",null,"да","да",null,"м"]
["победитель",null,null,"нет",null,"ж"]